Workbook

Sheet DATOS
A1: código | B1: Nombre | C1: Región | D1: Curso | E1: Examen Parcial | F1: Costo | G1: Descuento | H1: Neto a Pagar | I1: Examen Final | J1: Nota | K1: Observación
A2: 1 | B2: Alfonso | C2: Oeste | D2: Word | E2: 9 | F2: 240 | G2: =IF(C2="Norte",15%*F2,8%*F2) -> 19.2 | H2: =F$2:F$65536-G$2:G$65536 -> 220.8 | I2: 19 | J2: =(E2+I2)/2 -> 14 | K2: =IF(J2>=14,"Aprobado","Desaprobado") -> Aprobado
A3: 2 | B3: Moisés | C3: Oeste | D3: Power Point | E3: 9 | F3: 230 | G3: 18.4 | H3: 211.6 | I3: 16 | J3: 12.5 | K3: Desaprobado
A4: 3 | B4: Diana | C4: Este | D4: Excel | E4: 20 | F4: 240 | G4: 19.2 | H4: 220.8 | I4: 15 | J4: 17.5 | K4: Aprobado
A5: 4 | B5: Luis | C5: Este | D5: Power Point | E5: 20 | F5: 230 | G5: 18.4 | H5: 211.6 | I5: 13 | J5: 16.5 | K5: Aprobado
A6: 5 | B6: Fabiola | C6: Oeste | D6: Access | E6: 11 | F6: 280 | G6: 22.4 | H6: 257.6 | I6: 11 | J6: 11 | K6: Desaprobado
A7: 6 | B7: Leonidas | C7: Sur | D7: Excel | E7: 18 | F7: 240 | G7: 19.2 | H7: 220.8 | I7: 13 | J7: 15.5 | K7: Aprobado
A8: 7 | B8: Tania | C8: Este | D8: Access | E8: 20 | F8: 280 | G8: 22.4 | H8: 257.6 | I8: 20 | J8: 20 | K8: Aprobado
A9: 8 | B9: Vanessa | C9: Norte | D9: Access | E9: 12 | F9: 280 | G9: 42 | H9: 238 | I9: 12 | J9: 12 | K9: Desaprobado
A10: 9 | B10: Pedro | C10: Sur | D10: Word | E10: 11 | F10: 240 | G10: 19.2 | H10: 220.8 | I10: 11 | J10: 11 | K10: Desaprobado
A11: 10 | B11: Elisa | C11: Oeste | D11: Windows | E11: 15 | F11: 220 | G11: 17.6 | H11: 202.4 | I11: 9 | J11: 12 | K11: Desaprobado
A12: 11 | B12: Ronald | C12: Centro | D12: Access | E12: 19 | F12: 280 | G12: 22.4 | H12: 257.6 | I12: 15 | J12: 17 | K12: Aprobado
A13: 12 | B13: Antonio | C13: Este | D13: Excel | E13: 11 | F13: 240 | G13: 19.2 | H13: 220.8 | I13: 17 | J13: 14 | K13: Aprobado
A14: 13 | B14: Florencio | C14: Oeste | D14: Excel | E14: 18 | F14: 240 | G14: 19.2 | H14: 220.8 | I14: 13 | J14: 15.5 | K14: Aprobado
A15: 14 | B15: Amelia | C15: Centro | D15: Power Point | E15: 16 | F15: 230 | G15: 18.4 | H15: 211.6 | I15: 19 | J15: 17.5 | K15: Aprobado
A16: 15 | B16: Zaida | C16: Norte | D16: Power Point | E16: 8 | F16: 230 | G16: 34.5 | H16: 195.5 | I16: 10 | J16: 9 | K16: Desaprobado
A17: 16 | B17: Giovanna | C17: Oeste | D17: Access | E17: 8 | F17: 280 | G17: 22.4 | H17: 257.6 | I17: 19 | J17: 13.5 | K17: Desaprobado
A18: 17 | B18: Isabel | C18: Norte | D18: Windows | E18: 14 | F18: 220 | G18: 33 | H18: 187 | I18: 10 | J18: 12 | K18: Desaprobado
A19: 18 | B19: Magaly | C19: Norte | D19: Power Point | E19: 8 | F19: 230 | G19: 34.5 | H19: 195.5 | I19: 11 | J19: 9.5 | K19: Desaprobado
A20: 19 | B20: Carlos | C20: Este | D20: Windows | E20: 18 | F20: 220 | G20: 17.6 | H20: 202.4 | I20: 20 | J20: 19 | K20: Aprobado
A21: 20 | B21: Jenny | C21: Este | D21: Word | E21: 17 | F21: 240 | G21: 19.2 | H21: 220.8 | I21: 10 | J21: 13.5 | K21: Desaprobado
A22: 21 | B22: José | C22: Sur | D22: Excel | E22: 14 | F22: 240 | G22: 19.2 | H22: 220.8 | I22: 13 | J22: 13.5 | K22: Desaprobado
A23: 22 | B23: Janeth | C23: Norte | D23: Windows | E23: 12 | F23: 220 | G23: 33 | H23: 187 | I23: 17 | J23: 14.5 | K23: Aprobado
A24: 23 | B24: Roberto | C24: Oeste | D24: Excel | E24: 16 | F24: 240 | G24: 19.2 | H24: 220.8 | I24: 12 | J24: 14 | K24: Aprobado
A25: 24 | B25: Marcos | C25: Sur | D25: Excel | E25: 19 | F25: 240 | G25: 19.2 | H25: 220.8 | I25: 11 | J25: 15 | K25: Aprobado
A26: 25 | B26: Alejandrina | C26: Este | D26: Access | E26: 14 | F26: 280 | G26: 22.4 | H26: 257.6 | I26: 19 | J26: 16.5 | K26: Aprobado
A27: 26 | B27: Iván | C27: Norte | D27: Power Point | E27: 18 | F27: 230 | G27: 34.5 | H27: 195.5 | I27: 16 | J27: 17 | K27: Aprobado
A28: 27 | B28: Elías | C28: Centro | D28: Word | E28: 12 | F28: 240 | G28: 19.2 | H28: 220.8 | I28: 9 | J28: 10.5 | K28: Desaprobado
A29: 28 | B29: Lidia | C29: Oeste | D29: Word | E29: 8 | F29: 240 | G29: 19.2 | H29: 220.8 | I29: 17 | J29: 12.5 | K29: Desaprobado
A30: 29 | B30: Manuel | C30: Norte | D30: Access | E30: 15 | F30: 280 | G30: 42 | H30: 238 | I30: 17 | J30: 16 | K30: Aprobado
A31: 30 | B31: Salomón | C31: Sur | D31: Power Point | E31: 18 | F31: 230 | G31: 18.4 | H31: 211.6 | I31: 11 | J31: 14.5 | K31: Aprobado
A32: 31 | B32: William | C32: Norte | D32: Word | E32: 17 | F32: 240 | G32: 36 | H32: 204 | I32: 11 | J32: 14 | K32: Aprobado
A33: 32 | B33: Maritza | C33: Este | D33: Windows | E33: 8 | F33: 220 | G33: 17.6 | H33: 202.4 | I33: 14 | J33: 11 | K33: Desaprobado
A34: 33 | B34: Carmen | C34: Norte | D34: Excel | E34: 16 | F34: 240 | G34: =IF(C34="Norte",15%*F34,8%*F34) -> 36 | H34: =F$2:F$65536-G$2:G$65536 -> 204 | I34: 12 | J34: =(E34+I34)/2 -> 14 | K34: =IF(J34>=14,"Aprobado","Desaprobado") -> Aprobado
A35: 34 | B35: Alejandro | C35: Oeste | D35: Access | E35: 17 | F35: 280 | G35: 22.4 | H35: 257.6 | I35: 18 | J35: 17.5 | K35: Aprobado
A36: 35 | B36: Cynthia | C36: Oeste | D36: Windows | E36: 19 | F36: 220 | G36: 17.6 | H36: 202.4 | I36: 15 | J36: 17 | K36: Aprobado
A37: 36 | B37: Viviana | C37: Centro | D37: Excel | E37: 16 | F37: 240 | G37: 19.2 | H37: 220.8 | I37: 10 | J37: 13 | K37: Desaprobado
A38: 37 | B38: Dominga | C38: Este | D38: Word | E38: 9 | F38: 240 | G38: 19.2 | H38: 220.8 | I38: 17 | J38: 13 | K38: Desaprobado
A39: 38 | B39: Elba | C39: Oeste | D39: Windows | E39: 15 | F39: 220 | G39: 17.6 | H39: 202.4 | I39: 17 | J39: 16 | K39: Aprobado
A40: 39 | B40: Edson | C40: Este | D40: Power Point | E40: 19 | F40: 230 | G40: 18.4 | H40: 211.6 | I40: 16 | J40: 17.5 | K40: Aprobado
A41: 40 | B41: Marina | C41: Este | D41: Windows | E41: 14 | F41: 220 | G41: 17.6 | H41: 202.4 | I41: 8 | J41: 11 | K41: Desaprobado
A42: 41 | B42: Raúl | C42: Norte | D42: Power Point | E42: 17 | F42: 230 | G42: 34.5 | H42: 195.5 | I42: 17 | J42: 17 | K42: Aprobado
A43: 42 | B43: Inés | C43: Este | D43: Excel | E43: 19 | F43: 240 | G43: 19.2 | H43: 220.8 | I43: 20 | J43: 19.5 | K43: Aprobado
A44: 43 | B44: Dany | C44: Oeste | D44: Windows | E44: 10 | F44: 220 | G44: 17.6 | H44: 202.4 | I44: 13 | J44: 11.5 | K44: Desaprobado
A45: 44 | B45: Javier | C45: Sur | D45: Power Point | E45: 8 | F45: 230 | G45: 18.4 | H45: 211.6 | I45: 8 | J45: 8 | K45: Desaprobado
A46: 45 | B46: Andrés | C46: Oeste | D46: Word | E46: 13 | F46: 240 | G46: 19.2 | H46: 220.8 | I46: 13 | J46: 13 | K46: Desaprobado
A47: 46 | B47: Juan | C47: Norte | D47: Access | E47: 20 | F47: 280 | G47: 42 | H47: 238 | I47: 11 | J47: 15.5 | K47: Aprobado
A48: 47 | B48: Arturo | C48: Oeste | D48: Word | E48: 19 | F48: 240 | G48: 19.2 | H48: 220.8 | I48: 16 | J48: 17.5 | K48: Aprobado
A49: 48 | B49: Angel | C49: Sur | D49: Windows | E49: 18 | F49: 220 | G49: 17.6 | H49: 202.4 | I49: 19 | J49: 18.5 | K49: Aprobado
A50: 49 | B50: Lizeth | C50: Norte | D50: Word | E50: 20 | F50: 240 | G50: 36 | H50: 204 | I50: 10 | J50: 15 | K50: Aprobado
A51: 50 | B51: Yenny | C51: Sur | D51: Windows | E51: 10 | F51: 220 | G51: 17.6 | H51: 202.4 | I51: 11 | J51: 10.5 | K51: Desaprobado
A52: 51 | B52: Dagoberto | C52: Oeste | D52: Access | E52: 13 | F52: 280 | G52: 22.4 | H52: 257.6 | I52: 19 | J52: 16 | K52: Aprobado
A53: 52 | B53: Rubén | C53: Norte | D53: Word | E53: 19 | F53: 240 | G53: 36 | H53: 204 | I53: 17 | J53: 18 | K53: Aprobado
A54: 53 | B54: Alfredo | C54: Sur | D54: Power Point | E54: 15 | F54: 230 | G54: 18.4 | H54: 211.6 | I54: 15 | J54: 15 | K54: Aprobado
A55: 54 | B55: María | C55: Sur | D55: Power Point | E55: 13 | F55: 230 | G55: 18.4 | H55: 211.6 | I55: 15 | J55: 14 | K55: Aprobado
A56: 55 | B56: Oscar | C56: Este | D56: Power Point | E56: 12 | F56: 230 | G56: 18.4 | H56: 211.6 | I56: 10 | J56: 11 | K56: Desaprobado
A57: 56 | B57: Daniel | C57: Oeste | D57: Power Point | E57: 15 | F57: 230 | G57: 18.4 | H57: 211.6 | I57: 17 | J57: 16 | K57: Aprobado
A58: 57 | B58: Raquel | C58: Oeste | D58: Power Point | E58: 13 | F58: 230 | G58: 18.4 | H58: 211.6 | I58: 16 | J58: 14.5 | K58: Aprobado
A59: 58 | B59: Mercedes | C59: Oeste | D59: Access | E59: 10 | F59: 280 | G59: 22.4 | H59: 257.6 | I59: 17 | J59: 13.5 | K59: Desaprobado
A60: 59 | B60: Joel | C60: Norte | D60: Power Point | E60: 10 | F60: 230 | G60: 34.5 | H60: 195.5 | I60: 18 | J60: 14 | K60: Aprobado
A61: 60 | B61: Regina | C61: Norte | D61: Word | E61: 14 | F61: 240 | G61: 36 | H61: 204 | I61: 18 | J61: 16 | K61: Aprobado
A62: 61 | B62: Marita | C62: Centro | D62: Windows | E62: 19 | F62: 220 | G62: 17.6 | H62: 202.4 | I62: 8 | J62: 13.5 | K62: Desaprobado
A63: 62 | B63: Natividad | C63: Este | D63: Excel | E63: 16 | F63: 240 | G63: 19.2 | H63: 220.8 | I63: 17 | J63: 16.5 | K63: Aprobado
A64: 63 | B64: Faustino | C64: Sur | D64: Power Point | E64: 19 | F64: 230 | G64: 18.4 | H64: 211.6 | I64: 15 | J64: 17 | K64: Aprobado
A65: 64 | B65: Aurelio | C65: Centro | D65: Word | E65: 9 | F65: 240 | G65: 19.2 | H65: 220.8 | I65: 16 | J65: 12.5 | K65: Desaprobado
A66: 65 | B66: Irazema | C66: Norte | D66: Windows | E66: 19 | F66: 220 | G66: =IF(C66="Norte",15%*F66,8%*F66) -> 33 | H66: =F$2:F$65536-G$2:G$65536 -> 187 | I66: 10 | J66: =(E66+I66)/2 -> 14.5 | K66: =IF(J66>=14,"Aprobado","Desaprobado") -> Aprobado
A67: 66 | B67: Sonia | C67: Sur | D67: Access | E67: 14 | F67: 280 | G67: 22.4 | H67: 257.6 | I67: 17 | J67: 15.5 | K67: Aprobado
A68: 67 | B68: Enrique | C68: Oeste | D68: Windows | E68: 20 | F68: 220 | G68: 17.6 | H68: 202.4 | I68: 18 | J68: 19 | K68: Aprobado
A69: 68 | B69: Jesús | C69: Sur | D69: Access | E69: 19 | F69: 280 | G69: 22.4 | H69: 257.6 | I69: 14 | J69: 16.5 | K69: Aprobado
A70: 69 | B70: Teresa | C70: Oeste | D70: Power Point | E70: 17 | F70: 230 | G70: 18.4 | H70: 211.6 | I70: 16 | J70: 16.5 | K70: Aprobado
A71: 70 | B71: Renán | C71: Sur | D71: Excel | E71: 16 | F71: 240 | G71: 19.2 | H71: 220.8 | I71: 16 | J71: 16 | K71: Aprobado
A72: 71 | B72: Octavio | C72: Norte | D72: Excel | E72: 11 | F72: 240 | G72: 36 | H72: 204 | I72: 14 | J72: 12.5 | K72: Desaprobado
A73: 72 | B73: Mario | C73: Oeste | D73: Excel | E73: 9 | F73: 240 | G73: 19.2 | H73: 220.8 | I73: 11 | J73: 10 | K73: Desaprobado
A74: 73 | B74: Jorge | C74: Centro | D74: Power Point | E74: 15 | F74: 230 | G74: 18.4 | H74: 211.6 | I74: 19 | J74: 17 | K74: Aprobado
A75: 74 | B75: Heli | C75: Norte | D75: Excel | E75: 18 | F75: 240 | G75: 36 | H75: 204 | I75: 15 | J75: 16.5 | K75: Aprobado
A76: 75 | B76: Alberto | C76: Este | D76: Access | E76: 14 | F76: 280 | G76: 22.4 | H76: 257.6 | I76: 11 | J76: 12.5 | K76: Desaprobado
A77: 76 | B77: Ronaldo | C77: Sur | D77: Access | E77: 15 | F77: 280 | G77: 22.4 | H77: 257.6 | I77: 11 | J77: 13 | K77: Desaprobado
A78: 77 | B78: Israel | C78: Sur | D78: Access | E78: 8 | F78: 280 | G78: 22.4 | H78: 257.6 | I78: 16 | J78: 12 | K78: Desaprobado
A79: 78 | B79: Ricardo | C79: Norte | D79: Excel | E79: 11 | F79: 240 | G79: 36 | H79: 204 | I79: 17 | J79: 14 | K79: Aprobado
A80: 79 | B80: Armando | C80: Sur | D80: Word | E80: 20 | F80: 240 | G80: 19.2 | H80: 220.8 | I80: 8 | J80: 14 | K80: Aprobado
A81: 80 | B81: Alicia | C81: Centro | D81: Excel | E81: 14 | F81: 240 | G81: 19.2 | H81: 220.8 | I81: 20 | J81: 17 | K81: Aprobado
A82: 81 | B82: Vladimir | C82: Sur | D82: Access | E82: 20 | F82: 280 | G82: 22.4 | H82: 257.6 | I82: 19 | J82: 19.5 | K82: Aprobado
A83: 82 | B83: Romell | C83: Norte | D83: Windows | E83: 11 | F83: 220 | G83: 33 | H83: 187 | I83: 16 | J83: 13.5 | K83: Desaprobado
A84: 83 | B84: Adán | C84: Este | D84: Windows | E84: 8 | F84: 220 | G84: 17.6 | H84: 202.4 | I84: 16 | J84: 12 | K84: Desaprobado
A85: 84 | B85: Alcides | C85: Sur | D85: Windows | E85: 12 | F85: 220 | G85: 17.6 | H85: 202.4 | I85: 9 | J85: 10.5 | K85: Desaprobado
A86: 85 | B86: Josué | C86: Sur | D86: Windows | E86: 9 | F86: 220 | G86: 17.6 | H86: 202.4 | I86: 16 | J86: 12.5 | K86: Desaprobado
A87: 86 | B87: Yesenia | C87: Este | D87: Word | E87: 15 | F87: 240 | G87: 19.2 | H87: 220.8 | I87: 14 | J87: 14.5 | K87: Aprobado
A88: 87 | B88: Rafael | C88: Sur | D88: Windows | E88: 19 | F88: 220 | G88: 17.6 | H88: 202.4 | I88: 8 | J88: 13.5 | K88: Desaprobado
A89: 88 | B89: Gertrudis | C89: Centro | D89: Access | E89: 8 | F89: 280 | G89: 22.4 | H89: 257.6 | I89: 12 | J89: 10 | K89: Desaprobado
A90: 89 | B90: Alonso | C90: Norte | D90: Windows | E90: 14 | F90: 220 | G90: 33 | H90: 187 | I90: 15 | J90: 14.5 | K90: Aprobado
A91: 90 | B91: Gabriel | C91: Sur | D91: Excel | E91: 16 | F91: 240 | G91: 19.2 | H91: 220.8 | I91: 17 | J91: 16.5 | K91: Aprobado
A92: 91 | B92: Alex | C92: Oeste | D92: Excel | E92: 12 | F92: 240 | G92: 19.2 | H92: 220.8 | I92: 20 | J92: 16 | K92: Aprobado
A93: 92 | B93: Ulises | C93: Sur | D93: Word | E93: 9 | F93: 240 | G93: 19.2 | H93: 220.8 | I93: 15 | J93: 12 | K93: Desaprobado
A94: 93 | B94: Patricia | C94: Centro | D94: Power Point | E94: 19 | F94: 230 | G94: 18.4 | H94: 211.6 | I94: 9 | J94: 14 | K94: Aprobado
A95: 94 | B95: Noé | C95: Centro | D95: Word | E95: 13 | F95: 240 | G95: 19.2 | H95: 220.8 | I95: 11 | J95: 12 | K95: Desaprobado
A96: 95 | B96: Walter | C96: Este | D96: Word | E96: 12 | F96: 240 | G96: 19.2 | H96: 220.8 | I96: 11 | J96: 11.5 | K96: Desaprobado
A97: 96 | B97: Nancy | C97: Sur | D97: Access | E97: 19 | F97: 280 | G97: 22.4 | H97: 257.6 | I97: 18 | J97: 18.5 | K97: Aprobado
A98: 97 | B98: Giannina | C98: Centro | D98: Access | E98: 20 | F98: 280 | G98: =IF(C98="Norte",15%*F98,8%*F98) -> 22.4 | H98: =F$2:F$65536-G$2:G$65536 -> 257.6 | I98: 18 | J98: =(E98+I98)/2 -> 19 | K98: =IF(J98>=14,"Aprobado","Desaprobado") -> Aprobado
A99: 98 | B99: Ernesto | C99: Oeste | D99: Word | E99: 12 | F99: 240 | G99: 19.2 | H99: 220.8 | I99: 19 | J99: 15.5 | K99: Aprobado
A100: 99 | B100: Erika | C100: Sur | D100: Word | E100: 16 | F100: 240 | G100: 19.2 | H100: 220.8 | I100: 18 | J100: 17 | K100: Aprobado
A101: 100 | B101: Ana | C101: Centro | D101: Excel | E101: 13 | F101: 240 | G101: 19.2 | H101: 220.8 | I101: 13 | J101: 13 | K101: Desaprobado

Sheet VENTAS
A2: TABLA1 | F2: PRECIOS
A3: Vehículo | B3: Comisión | F3: Vehículo | G3: Ford | H3: Volvo | I3: Hyundai
A4: Automóvil | B4: 30 | F4: Automóvil | G4: 14000 | H4: 34000 | I4: 9000
A5: Camión | B5: 70 | F5: Camión | G5: 43000 | H5: 51000 | I5: 35000
A6: Camioneta | B6: 35 | F6: Camioneta | G6: 20000 | H6: 23000 | I6: 18000
A7: Omnibus | B7: 50 | F7: Omnibus | G7: 42000 | H7: 45000 | I7: 39000
A9: Venta de Vehículos
A11: Agencia | B11: Vehículo | C11: Marca | D11: Turno | E11: Lugar | F11: Vendedor | G11: Cantidad | H11: Comisión | I11: Monto | J11: IGV | K11: TOTAL
A12: La Estrella | B12: Camión | C12: Ford | D12: Tarde | E12: Lima | F12: Robles | G12: 7 | H12: =VLOOKUP(B12,$A$4:$B$7,2)*7 -> 490 | I12: =(INDIRECT(B12) INDIRECT(C12))*G12 -> 301000 | J12: =I12*19% -> 57190 | K12: =I$12:I$65536+J$12:J$65536 -> 358190
A13: El Triunfo | B13: Automóvil | C13: Volvo | D13: Mañana | E13: Lima | F13: Alva | G13: 2 | H13: =VLOOKUP(B13,$A$4:$B$7,2)*7 -> 210 | I13: =(INDIRECT(B13) INDIRECT(C13))*G13 -> 68000 | J13: =I13*19% -> 12920 | K13: 80920
A14: El Triunfo | B14: Omnibus | C14: Hyundai | D14: Mañana | E14: Provincias | F14: Alva | G14: 5 | H14: 350 | I14: =(INDIRECT(B14) INDIRECT(C14))*G14 -> 195000 | J14: 37050 | K14: 232050
A15: El Triunfo | B15: Camioneta | C15: Ford | D15: Tarde | E15: Lima | F15: Cueva | G15: 6 | H15: 245 | I15: =(INDIRECT(B15) INDIRECT(C15))*G15 -> 120000 | J15: 22800 | K15: 142800
A16: La Estrella | B16: Camión | C16: Volvo | D16: Tarde | E16: Provincias | F16: Robles | G16: 8 | H16: 490 | I16: =(INDIRECT(B16) INDIRECT(C16))*G16 -> 408000 | J16: 77520 | K16: 485520
A17: El Triunfo | B17: Automóvil | C17: Hyundai | D17: Tarde | E17: Lima | F17: Jara | G17: 8 | H17: 210 | I17: =(INDIRECT(B17) INDIRECT(C17))*G17 -> 72000 | J17: 13680 | K17: 85680
A18: La Estrella | B18: Omnibus | C18: Ford | D18: Mañana | E18: Lima | F18: Cueva | G18: 3 | H18: 350 | I18: =(INDIRECT(B18) INDIRECT(C18))*G18 -> 126000 | J18: 23940 | K18: 149940
A19: La Estrella | B19: Camioneta | C19: Volvo | D19: Tarde | E19: Provincias | F19: Alva | G19: 7 | H19: 245 | I19: =(INDIRECT(B19) INDIRECT(C19))*G19 -> 161000 | J19: 30590 | K19: 191590
A20: La Estrella | B20: Camión | C20: Hyundai | D20: Mañana | E20: Lima | F20: Alva | G20: 1 | H20: 490 | I20: =(INDIRECT(B20) INDIRECT(C20))*G20 -> 35000 | J20: 6650 | K20: 41650
A21: El Triunfo | B21: Automóvil | C21: Ford | D21: Mañana | E21: Provincias | F21: Cueva | G21: 4 | H21: 210 | I21: =(INDIRECT(B21) INDIRECT(C21))*G21 -> 56000 | J21: 10640 | K21: 66640
A22: La Estrella | B22: Omnibus | C22: Volvo | D22: Tarde | E22: Lima | F22: Robles | G22: 6 | H22: 350 | I22: =(INDIRECT(B22) INDIRECT(C22))*G22 -> 270000 | J22: 51300 | K22: 321300
A23: El Triunfo | B23: Camioneta | C23: Hyundai | D23: Tarde | E23: Lima | F23: Jara | G23: 3 | H23: 245 | I23: =(INDIRECT(B23) INDIRECT(C23))*G23 -> 54000 | J23: 10260 | K23: 64260
A24: El Triunfo | B24: Camión | C24: Ford | D24: Mañana | E24: Provincias | F24: Jara | G24: 9 | H24: 490 | I24: =(INDIRECT(B24) INDIRECT(C24))*G24 -> 387000 | J24: 73530 | K24: 460530
A25: La Estrella | B25: Automóvil | C25: Volvo | D25: Tarde | E25: Lima | F25: Alva | G25: 6 | H25: 210 | I25: =(INDIRECT(B25) INDIRECT(C25))*G25 -> 204000 | J25: 38760 | K25: 242760
A26: El Triunfo | B26: Omnibus | C26: Hyundai | D26: Tarde | E26: Provincias | F26: Cueva | G26: 1 | H26: 350 | I26: =(INDIRECT(B26) INDIRECT(C26))*G26 -> 39000 | J26: 7410 | K26: 46410
A27: El Triunfo | B27: Camioneta | C27: Ford | D27: Mañana | E27: Lima | F27: Cueva | G27: 8 | H27: 245 | I27: =(INDIRECT(B27) INDIRECT(C27))*G27 -> 160000 | J27: 30400 | K27: 190400
A28: La Estrella | B28: Camión | C28: Volvo | D28: Mañana | E28: Lima | F28: Robles | G28: 4 | H28: 490 | I28: =(INDIRECT(B28) INDIRECT(C28))*G28 -> 204000 | J28: 38760 | K28: 242760
A29: La Estrella | B29: Automóvil | C29: Hyundai | D29: Tarde | E29: Provincias | F29: Jara | G29: 7 | H29: 210 | I29: =(INDIRECT(B29) INDIRECT(C29))*G29 -> 63000 | J29: 11970 | K29: 74970
A30: El Triunfo | B30: Omnibus | C30: Ford | D30: Tarde | E30: Lima | F30: Robles | G30: 5 | H30: 350 | I30: =(INDIRECT(B30) INDIRECT(C30))*G30 -> 210000 | J30: 39900 | K30: 249900
A31: La Estrella | B31: Camioneta | C31: Volvo | D31: Tarde | E31: Provincias | F31: Robles | G31: 3 | H31: 245 | I31: =(INDIRECT(B31) INDIRECT(C31))*G31 -> 69000 | J31: 13110 | K31: 82110
A32: El Triunfo | B32: Camión | C32: Hyundai | D32: Mañana | E32: Lima | F32: Alva | G32: 1 | H32: 490 | I32: =(INDIRECT(B32) INDIRECT(C32))*G32 -> 35000 | J32: 6650 | K32: 41650
A33: El Triunfo | B33: Automóvil | C33: Ford | D33: Tarde | E33: Lima | F33: Cueva | G33: 9 | H33: 210 | I33: =(INDIRECT(B33) INDIRECT(C33))*G33 -> 126000 | J33: 23940 | K33: 149940
A34: La Estrella | B34: Omnibus | C34: Volvo | D34: Mañana | E34: Provincias | F34: Robles | G34: 7 | H34: 350 | I34: =(INDIRECT(B34) INDIRECT(C34))*G34 -> 315000 | J34: 59850 | K34: 374850
A35: El Triunfo | B35: Camioneta | C35: Hyundai | D35: Mañana | E35: Lima | F35: Jara | G35: 8 | H35: 245 | I35: =(INDIRECT(B35) INDIRECT(C35))*G35 -> 144000 | J35: 27360 | K35: 171360
A36: La Estrella | B36: Camión | C36: Ford | D36: Tarde | E36: Provincias | F36: Robles | G36: 6 | H36: 490 | I36: =(INDIRECT(B36) INDIRECT(C36))*G36 -> 258000 | J36: 49020 | K36: 307020
A37: El Triunfo | B37: Automóvil | C37: Volvo | D37: Tarde | E37: Lima | F37: Alva | G37: 5 | H37: 210 | I37: =(INDIRECT(B37) INDIRECT(C37))*G37 -> 170000 | J37: 32300 | K37: 202300
A38: El Triunfo | B38: Omnibus | C38: Hyundai | D38: Mañana | E38: Lima | F38: Alva | G38: 5 | H38: 350 | I38: =(INDIRECT(B38) INDIRECT(C38))*G38 -> 195000 | J38: 37050 | K38: 232050
A39: El Triunfo | B39: Camioneta | C39: Ford | D39: Tarde | E39: Provincias | F39: Cueva | G39: 1 | H39: 245 | I39: =(INDIRECT(B39) INDIRECT(C39))*G39 -> 20000 | J39: 3800 | K39: 23800
A40: La Estrella | B40: Camión | C40: Volvo | D40: Tarde | E40: Lima | F40: Robles | G40: 7 | H40: 490 | I40: =(INDIRECT(B40) INDIRECT(C40))*G40 -> 357000 | J40: 67830 | K40: 424830
A41: El Triunfo | B41: Automóvil | C41: Hyundai | D41: Mañana | E41: Provincias | F41: Jara | G41: 5 | H41: 210 | I41: =(INDIRECT(B41) INDIRECT(C41))*G41 -> 45000 | J41: 8550 | K41: 53550
A42: El Triunfo | B42: Omnibus | C42: Ford | D42: Mañana | E42: Lima | F42: Robles | G42: 8 | H42: 350 | I42: =(INDIRECT(B42) INDIRECT(C42))*G42 -> 336000 | J42: 63840 | K42: 399840
A43: El Triunfo | B43: Camioneta | C43: Volvo | D43: Tarde | E43: Lima | F43: Robles | G43: 4 | H43: 245 | I43: =(INDIRECT(B43) INDIRECT(C43))*G43 -> 92000 | J43: 17480 | K43: 109480
A44: La Estrella | B44: Camión | C44: Hyundai | D44: Tarde | E44: Provincias | F44: Alva | G44: 5 | H44: 490 | I44: =(INDIRECT(B44) INDIRECT(C44))*G44 -> 175000 | J44: 33250 | K44: 208250
A45: La Estrella | B45: Automóvil | C45: Ford | D45: Tarde | E45: Lima | F45: Cueva | G45: 6 | H45: 210 | I45: =(INDIRECT(B45) INDIRECT(C45))*G45 -> 84000 | J45: 15960 | K45: 99960
A46: El Triunfo | B46: Omnibus | C46: Volvo | D46: Mañana | E46: Provincias | F46: Robles | G46: 3 | H46: 350 | I46: =(INDIRECT(B46) INDIRECT(C46))*G46 -> 135000 | J46: 25650 | K46: 160650
A47: La Estrella | B47: Camioneta | C47: Hyundai | D47: Tarde | E47: Lima | F47: Jara | G47: 3 | H47: 245 | I47: =(INDIRECT(B47) INDIRECT(C47))*G47 -> 54000 | J47: 10260 | K47: 64260
A48: El Triunfo | B48: Camión | C48: Ford | D48: Mañana | E48: Lima | F48: Jara | G48: 3 | H48: 490 | I48: =(INDIRECT(B48) INDIRECT(C48))*G48 -> 129000 | J48: 24510 | K48: 153510
A49: El Triunfo | B49: Automóvil | C49: Volvo | D49: Mañana | E49: Provincias | F49: Alva | G49: 5 | H49: 210 | I49: =(INDIRECT(B49) INDIRECT(C49))*G49 -> 170000 | J49: 32300 | K49: 202300
A50: La Estrella | B50: Omnibus | C50: Hyundai | D50: Tarde | E50: Lima | F50: Alva | G50: 9 | H50: 350 | I50: =(INDIRECT(B50) INDIRECT(C50))*G50 -> 351000 | J50: 66690 | K50: 417690
A51: El Triunfo | B51: Camioneta | C51: Ford | D51: Tarde | E51: Provincias | F51: Cueva | G51: 8 | H51: 245 | I51: =(INDIRECT(B51) INDIRECT(C51))*G51 -> 160000 | J51: 30400 | K51: 190400
A52: La Estrella | B52: Camión | C52: Volvo | D52: Mañana | E52: Lima | F52: Robles | G52: 5 | H52: 490 | I52: =(INDIRECT(B52) INDIRECT(C52))*G52 -> 255000 | J52: 48450 | K52: 303450
A53: El Triunfo | B53: Automóvil | C53: Hyundai | D53: Tarde | E53: Lima | F53: Jara | G53: 5 | H53: 210 | I53: =(INDIRECT(B53) INDIRECT(C53))*G53 -> 45000 | J53: 8550 | K53: 53550
A54: El Triunfo | B54: Omnibus | C54: Ford | D54: Tarde | E54: Provincias | F54: Robles | G54: 2 | H54: 350 | I54: =(INDIRECT(B54) INDIRECT(C54))*G54 -> 84000 | J54: 15960 | K54: 99960
A55: El Triunfo | B55: Camioneta | C55: Volvo | D55: Mañana | E55: Lima | F55: Alva | G55: 1 | H55: 245 | I55: =(INDIRECT(B55) INDIRECT(C55))*G55 -> 23000 | J55: 4370 | K55: 27370
A56: La Estrella | B56: Camión | C56: Hyundai | D56: Mañana | E56: Provincias | F56: Alva | G56: 2 | H56: 490 | I56: =(INDIRECT(B56) INDIRECT(C56))*G56 -> 70000 | J56: 13300 | K56: 83300
A57: El Triunfo | B57: Automóvil | C57: Ford | D57: Tarde | E57: Lima | F57: Cueva | G57: 2 | H57: 210 | I57: =(INDIRECT(B57) INDIRECT(C57))*G57 -> 28000 | J57: 5320 | K57: 33320
